Cogmind - Beta 16 *** ADVENTURER MODE // 2025.10.28 @ 13:27:05 Player: kiesta07 Result: Self-destructed Performance ------------- Evolutions (1) 500 Regions Visited (2) 400 Robots Destroyed (21) 105 Value Destroyed (568) 568 Prototype IDs (1) 20 Alien Tech Used (0) 0 Bonus (0) 0 TOTAL SCORE: 1593 Bonus ------- None Cogmind --------- Core Integrity 277/400 Matter 284/300 Energy 88/100 System Corruption 1% Temperature Cool (0) Movement Core (50) Location -9/Materials Parts ------- > --- POWER (1) -------- (None) > --- PROPULSION (3) --- (None) > --- UTILITY (2) ------ Improved Heat Sink > --- WEAPON (3) ------- Assault Rifle > --- INVENTORY (5) ---- Huge Storage Unit Beam Rifle Peak State ------------ > --- POWER ------------ (None) > --- PROPULSION ------- Hover Unit Flight Unit Flight Unit > --- UTILITY ---------- Improved Heat Sink Shield Generator > --- WEAPON ----------- Beam Rifle Advanced Beam Cannon Advanced Beam Cannon > --- INVENTORY -------- Huge Storage Unit Assault Rifle [Rating: 16] Favorites ----------- Power Ion Engine Engine Ion Engine Power Core Light Nuclear Core Propulsion Compact Wheel Wheel Compact Wheel Hover Unit Hover Unit Flight Unit Flight Unit Utility Field Recycling Unit Device Field Recycling Unit Storage Huge Storage Unit Weapon Advanced Beam Cannon Energy Gun EM Pulse Gun Energy Cannon Advanced Beam Cannon Ballistic Gun Assault Rifle Launcher Grenade Launcher Build | -11 -10 -9 ------- Run | Yrd Mat Mat Slots Evolved 2 | . . 2 Power . | . . . Propulsion 1 | . . 1 Utility . | . . . Weapon 1 | . . 1 Parts Attached 23 | 6 13 4 Power 3 | 1 2 . Engine 2 | 1 1 . Core 1 | . 1 . Reactor . | . . . Propulsion 5 | 2 2 1 Treads . | . . . Leg . | . . . Wheel 2 | 2 . . Hover 1 | . . 1 Flight 2 | . 2 . Utility 8 | 1 6 1 Device 4 | . 3 1 Storage 4 | 1 3 . Processor . | . . . Hackware . | . . . Protection . | . . . Artifact . | . . . Weapon 7 | 2 3 2 Energy Gun 3 | 2 . 1 Energy Cannon 2 | . 2 . Ballistic Gun 1 | . . 1 Ballistic Cannon . | . . . Launcher 1 | . 1 . Special Weapon . | . . . Impact Weapon . | . . . Slashing Weapon . | . . . Piercing Weapon . | . . . Special Melee Weapon . | . . . Unidentified Prototypes 1 | . 1 . Parts Lost 7 | . 1 6 Power 1 | . . 1 Propulsion 2 | . . 2 Utility 1 | . . 1 Weapon 3 | . 1 2 Highest Loss Streak 5 | . 1 5 To Critical Strikes 1 | . . 1 Average Backups 2 | . 2 2 Power . | . . . Propulsion . | . 1 . Utility . | . . 1 Weapon . | . . 1 Tool/Special . | . . . Unused Backups 2 | . 2 . Power . | . . . Propulsion 2 | . 2 . Utility . | . . . Weapon . | . . . Tool/Special . | . . . Average Slot Usage (%) 88 | . 97 62 Engine 9 | . 12 . Core 2 | . 1 3 Wheel 18 | . 25 . Flight 6 | . 2 17 Device 14 | . 13 15 Storage 9 | . 12 . Energy Gun 4 | . 4 5 Energy Cannon 18 | . 18 18 Launcher 3 | . 4 . Peak Build Rating 16 | 6 15 16 Average Rating 10 | 3 10 12 On Entrance 6 | . 6 14 Avg Prop Armor Cover (%) 5 | . 4 5 Naked Turns . | . . . Heaviest Build 101 | 12 101 14 Greatest Support 26 | 26 26 8 Greatest Overweight (x) 3 | . 3 3 Average Overweight (x) 1 | . 1 1 Largest Inventory Capacity 25 | 8 25 5 Average Capacity 13 | 6 17 5 Most Carried 5 | 5 5 3 Average Carried 2 | 1 2 2 Final Capacity 8 | 8 5 5 Final Carried 2 | . 2 2 Class Distribution -------------------- 74% | Mutant 17% | Scavenger-Mutant 4% | Tank 3% | Scavenger-Tank Dominant Class ---------------- Mutant | -10/Materials Scavenger-Mutant | -9/Materials Resources | -11 -10 -9 ----------- Run | Yrd Mat Mat Matter Collected 555 | 206 207 142 Remotely . | . . . Salvage Created 608 | . 345 263 Parts 32 | . 18 14 Haulers Intercepted . | . . . Recyclers Shooed 1 | . . 1 Parts Field Recycled . | . . . Retrieved Matter . | . . . Parts Self-Destructed . | . . . Prevented . | . . . Parts Restored . | . . . Kills | -11 -10 -9 ------- Run | Yrd Mat Mat Combat Hostiles Destroyed 17 | . 12 5 Cannons 14 | . 9 5 AOE 3 | . 3 . Classes Destroyed 5 | . 3 2 Watcher 4 | . 2 2 Swarmer 6 | . 6 . Grunt 9 | . 6 3 Duelist 1 | . . 1 Sentry 1 | . . 1 Best Kill Streak 6 | . 6 4 Combat Bots Only 5 | . 5 3 Max Kills in Single Turn 2 | . 2 1 Gunslinging . | . . . Exploded 1 | . 1 . Melee . | . . . Uniques/NPCs Destroyed . | . . . Combat | -11 -10 -9 -------- Run | Yrd Mat Mat Hostile Shots Fired 112 | . 44 68 Missed 34 | . 10 24 Hits 78 | . 34 44 Projectile 78 | . 34 44 Critical Strikes 2 | . . 2 Damage Taken 757 | . 310 447 Core 216 | . 93 123 Absorbed by Shields 22 | . . 22 Ignored by Resistances 227 | . 93 134 Core Remaining (%) 81 | 100 62 . Volleys Fired 52 | . 31 21 Largest 3 | . 2 3 Hottest 192 | . 136 192 Shots Fired 93 | . 50 43 Gun 7 | . 2 5 Cannon 81 | . 43 38 Launcher 5 | . 5 . Special . | . . . Kinetic 2 | . . 2 Thermal 85 | . 44 41 Explosive 5 | . 5 . Electromagnetic 1 | . 1 . Robot Hit Streak 19 | . 8 19 Robot Miss Streak 4 | . 4 2 Penetration Max . | . . . Secondary Targets . | . . . Shots Hit Robots 58 | . 29 29 Core Hits 26 | . 18 8 Critical Kills . | . . . Critical Parts Destroyed . | . . . Critical Strikes 1 | . . 1 Burn 1 | . . 1 Melee Attacks . | . . . Impact . | . . . Slashing . | . . . Piercing . | . . . Sneak Attacks . | . . . Combat Hostiles . | . . . Follow-up Attacks . | . . . Damage Inflicted 1340 | . 754 586 Guns 79 | . 13 66 Cannons 1022 | . 510 512 Explosions 231 | . 231 . Melee . | . . . Ramming 8 | . . 8 Kinetic 22 | . . 22 Thermal 1079 | . 523 556 Explosive 231 | . 231 . Electromagnetic . | . . . Impact . | . . . Slashing . | . . . Piercing . | . . . Highest Corruption 1 | . . 1 Average Corruption 1 | . . 1 Corruption Purged . | . . . Corruption Blocked . | . . . Overload Shots . | . . . Overflow Damage 12 | . . 12 Projectiles 12 | . . 12 Explosions . | . . . Melee . | . . . Knockbacks . | . . . Impact . | . . . Kinetic . | . . . Secondary . | . . . Self-Inflicted Damage 3 | . . 3 Shots . | . . . Rammed 3 | . 1 2 Targets Rammed 3 | . 1 2 Kicked . | . . . Crushed . | . . . Highest Temperature 474 | . 468 474 Average Temperature 171 | . 155 214 Received Heat Transfer 330 | . 96 234 Effects 9 | . 4 5 Shutdowns 1 | . . 1 Energy Bleed 3 | . 3 . Matter Decay 1 | . 1 . Damage (major) 4 | . . 4 Siege Activations . | . . . Martial Activations . | . . . Shielding Activations . | . . . Robots Disrupted . | . . . Combat Hostiles . | . . . Robots Corrupted . | . . . Combat Hostiles . | . . . Parts Fried . | . . . Impact Corruptions . | . . . Robots Melted . | . . . Combat Hostiles . | . . . Parts Melted 2 | . 2 . Heat Transferred 2072 | . 962 1110 Parts Sabotaged . | . . . Parts Stolen . | . . . Parts Stripped . | . . . Power Chain Reactions . | . . . Alert | -11 -10 -9 ------- Run | Yrd Mat Mat Maximum Alert Level . | . . . Low Security (%) 100 | 100 100 100 Level 1 . | . . . Level 2 . | . . . Level 3 . | . . . Level 4 . | . . . Level 5 . | . . . High Security . | . . . Max Security . | . . . Peak Influence 161 | . 161 96 Initial 39 | . . 39 Average 45 | . 45 50 Influence Increases 593 | . 444 149 Destroy 0b10 Robot/C 340 | . 240 100 Destroy 0b10 Robot/NC 20 | . 10 10 Destroy Leader 78 | . 54 24 Successful Hack 10 | . 10 . Disable Machine 18 | . 18 . Destroy Structure 22 | . 22 . Lose Combat Pursuer 105 | . 90 15 Influence Decreases 588 | . 333 255 Entered New Map 72 | . . 72 Time Decay 362 | . 239 123 Lost Part 70 | . 10 60 Purge Threat 84 | . 84 . Squads Dispatched 1 | . 1 . Investigation 1 | . 1 . Extermination . | . . . Reinforcement . | . . . Assault . | . . . Garrison . | . . . Intercept . | . . . Searches Triggered . | . . . Construction Impeded . | . . . Haulers Reinforced . | . . . Active Scanning Responses . | . . . Cargo Convoy Interrupts . | . . . Stealth | -11 -10 -9 --------- Run | Yrd Mat Mat Distress Signals 4 | . 1 3 Communications Jammed . | . . . Distress Signals . | . . . Times Spotted 33 | . 18 15 Peak Tracking Total 6 | . 6 6 Tactical Retreats 4 | . 3 1 Traps | -11 -10 -9 ------- Run | Yrd Mat Mat Traps Triggered 1 | . 1 . Indirectly . | . . . Trap Hack Attempts . | . . . Triggered . | . . . Disarmed . | . . . Reprogrammed . | . . . Reused . | . . . Traps Extracted . | . . . Installed . | . . . Triggered . | . . . Machines | -11 -10 -9 ---------- Run | Yrd Mat Mat Machines Disabled 2 | . 2 . Max in Single Turn 1 | . 1 . Machines Repaired . | . . . Machines Dismantled . | . . . Machines Sabotaged . | . . . Overloaded Fab Kills . | . . . Hacking | -11 -10 -9 --------- Run | Yrd Mat Mat Machines Accessed 4 | . 4 . Terminals 2 | . 2 . Fabricators . | . . . Repair Stations . | . . . Recycling Units 2 | . 2 . Scanalyzers . | . . . Garrison Access . | . . . Total Hacks 11 | . 11 . Successful 8 | . 8 . Failed 3 | . 3 . Catastrophic . | . . . Database Lockouts . | . . . Manual . | . . . Terminals 5 | . 5 . Fabricators . | . . . Repair Stations . | . . . Recycling Units 6 | . 6 . Scanalyzers . | . . . Garrison Access . | . . . Terminal Hacks 3 | . 3 . Record 1 | . 1 . Alert Level 1 | . 1 . Unreport Threat 1 | . 1 . Fabricator Hacks . | . . . Repair Station Hacks . | . . . Recycling Unit Hacks 5 | . 5 . Recycle Component 2 | . 2 . Process 1 | . 1 . Retrieve Components 2 | . 2 . Scanalyzer . | . . . Garrison Access Hacks . | . . . Unauthorized Hacks . | . . . Terminals . | . . . Fabricators . | . . . Repair Stations . | . . . Recycling Units . | . . . Scanalyzers . | . . . Garrison Access . | . . . Data Cores Recovered . | . . . Used . | . . . Hacking Detections 3 | . 3 . Full Trace Events 1 | . 1 . Feedback Events . | . . . Feedback Blocked . | . . . Robot Schematics Acquired . | . . . Robots Built . | . . . Authchips . | . . . Time . | . . . Total Robot Build Rating . | . . . Part Schematics Acquired . | . . . Parts Built . | . . . Authchips . | . . . Time . | . . . Total Part Build Rating . | . . . Part Studies Acquired . | . . . Parts Repaired . | . . . Time . | . . . Parts Recycled 2 | . 2 . Recycled Matter 146 | . 146 . Retrieved Matter . | . . . Retrieved Components 3 | . 3 . Parts Scanalyzed . | . . . Part Schematics Acquired . | . . . Parts Damaged . | . . . Bothacking | -11 -10 -9 ------------ Run | Yrd Mat Mat Used RIF Installer . | . . . Robots Hacked . | . . . Non-combat . | . . . Combat . | . . . Robot Hacks Applied . | . . . Relay Couplers Released . | . . . Fabnet Peak Effective % . | . . . Robots Rewired . | . . . Allies Hacked . | . . . Hacks Repelled . | . . . Allies | -11 -10 -9 -------- Run | Yrd Mat Mat Total Allies . | . . . Largest Group . | . . . Highest-Rated Group . | . . . Highest-Rated Ally . | . . . Total Orders . | . . . Ally Attacks . | . . . Total Damage . | . . . Kills . | . . . Allies Corrupted . | . . . Allies Melted . | . . . Intel | -11 -10 -9 ------- Run | Yrd Mat Mat Active Infowar (turns) 103 | . 103 . Sensors 103 | . 103 . Robot Analysis Total . | . . . Derelict Logs Recovered . | . . . Drone Launches . | . . . Drone Recoveries . | . . . Exploration | -11 -10 -9 ------------- Run | Yrd Mat Mat Turns Passed 1079 | 44 767 268 Spaces Moved 751 | 44 547 160 Core 50 | 17 . 33 Treads . | . . . Legs . | . . . Wheels 517 | 27 490 . Hover 31 | . . 31 Flight 153 | . 57 96 Fastest Speed 50 | 50 90 100 Average Speed 115 | 74 116 122 Slowest Speed 200 | 90 135 200 Overloaded Moves . | . . . Propulsion Burnouts . | . . . Robots Hopped . | . . . Potential Cave-ins . | . . . Cave-ins Triggered . | . . . Exploration Rate (%) 27 | 3 68 12 Regions Visited 2 Branch Regions . Pre-discovered Areas . | . . . Known Exits Taken . | . . . Unknown Exits Taken 2 | 1 1 . Scrap Searched . | . . . Spaces Dug . | . . . Terrain Destroyed 19 | . 19 . Melee . | . . . Projectile . | . . . AOE 19 | . 19 . Terrain Rammed . | . . . Walls Destroyed . | . . . Machines Disabled . | . . . Actions | -11 -10 -9 --------- Run | Yrd Mat Mat Total 872 | 54 627 191 Wait . | . . . Move 749 | 43 546 160 Hop . | . . . Pick Up 26 | 5 18 3 Fast Attach 1 | 1 . . Attach 13 | 5 5 3 Detach . | . . . Swap 14 | . 13 1 Drop 14 | . 13 1 Fire 52 | . 31 21 Melee . | . . . Ram 3 | . 1 2 Kick . | . . . Crush . | . . . Escape Stasis . | . . . Rewire . | . . . Trap . | . . . Miscellaneous . | . . . Route ------- -11/Scrapyard -10/Materials (discovered 3 exits: [*Mat x2] / [*Min]) -9/Materials History --------- Turn | Location | Event 12 | -11/Scrapyard | Discovered new exit (range 16) 45 | -11/Scrapyard | Entered Materials 197 | -10/Materials | Discovered new exit (range 7) 282 | -10/Materials | Discovered new exit (range 9) 348 | -10/Materials | Build established: Mutant 487 | -10/Materials | Discovered new exit (range 13) 812 | -10/Materials | Entered another Materials area 812 | -9/Materials | Evolved 2 slots: Propulsion x1, Weapon x1 1071 | -9/Materials | Lost 5 parts (2n1u2w) 1080 | -9/Materials | Self-destructed Last Messages --------------- Critical hit (Destroy). Adv. Beam Cannon destroyed. Dropped Flight Unit. K-01 Serf collects debris. Hover Unit destroyed. W-16 Scout distress signal alerts nearby ally. K-01 Serf collects debris. Adv. Beam Cannon destroyed. K-01 Serf collects debris. Shield Generator destroyed. K-01 Serf collects debris. Critical hit (Burn: +37). K-01 Serf cleans the Processing Tank. U-05 Engineer builds a Door. K-01 Serf collects debris. K-01 Serf cleans the Processing Tank. Slammed into K-01 Serf. Destabilizing: System corrupted (+1). [Achievement: There's More Where That Came From] Processing Tank disabled. Map ----- +----------------------------------------------------+ | ?????????????????######??????## ##?????????????? | | ?????????????????# /#???????# #??????????????? | | ?????????????????# #???????# #??????????????? | | ?????????????????# ######### #??????????????? | | ?????????????????# # ! ## #??????????????? | | ?????????????????# !# ## #??????????????? | | ?????????????????# ! # !!!## #??????????????? | | ?????????????????# # !!!## #??????????????? | | ?????????????????# # !!!## #??????????????? | | ?????????????????# # ## #??????????????? | | ????????????????####/######+### +??????????????? | | ????????????????# #??????????????? | | ??????????? /% #??????????????? | | ????????????????# =% #??????????????? | | ????????????????# ########### ########???????? | | ????????????????# ??????????# ? | | ????????????????# ??????????# #### ###???????? | | ????????????????# ??????????# #??????????????? | | ???????????????? ??????????# #??????????????? | | ??????????????? ??????????# #??????????????? | | ?????????????? ??????????# #??????????????? | | ?????????????#######??????????# #??????????????? | | ??????????????????????????????#% #??????????????? | | ????????????????????########### =#??????????????? | | ????????????????????# # #??????????????? | | ????????????????????# g @ g # ####+#####?????? | | ????????????????????# """ """ # | | ????????????????????# """ "" + | | ????????????????????#g""" """ # | | ????????????????????# """ """ ########+### ### ? | | ????????????????????# """Y"""Y#??????????????????? | | ????????????????????# %% #??????????????????? | | ????????????????????###########??????????????????? | | ?????????????????????????????????????????????????? | | ?????????????????????????????????????????????????? | | ?????????????????????????????????????????????????? | | ?????????????????????????????????????????????????? | | ?????????????????????????????????????????????????? | | ?????????????????????????????????????????????????? | | ?????????????????????????????????????????????????? | | ?????????????????????????????????????????????????? | | ?????????????????????????????????????????????????? | | ?????????????????????????????????????????????????? | | ?????????????????????????????????????????????????? | | ?????????????????????????????????????????????????? | | ?????????????????????????????????????????????????? | | ?????????????????????????????????????????????????? | | ?????????????????????????????????????????????????? | | ?????????????????????????????????????????????????? | | ?????????????????????????????????????????????????? | +----------------------------------------------------+ Best States ------------- Heat Dissipation 42 Energy Generation 14 Energy Capacity 250 Matter Stores 300 Matter Capacity 450 Sight Range 16 Robot Scan Range 14 Terrain Scan Density 10 Resistance: KI 20 Resistance: TH 20 Resistance: EX 20 Resistance: EM 20 Resistance: I 20 Resistance: S 20 Resistance: P 20 Evasion (%) 50 Offensive Hacking 10 Item Schematics ----------------- None Robot Schematics ------------------ None Fabricated ------------ Nothing Repaired ---------- Nothing Studied --------- None Alien Tech Used ----------------- None Achievements -------------- There's More Where That Came From Challenges ------------ None Game ------ Seed DrainedDecoyDesublimator Manual? 0 Play Time 00:15:45 Cumulative 2.5 hours Start 2025.10.28 @ 13:13:47 End 2025.10.28 @ 13:27:05 Sessions 1 Manual Loads 0 Difficulty Adventurer Special Mode None Game No. 5 Rogue 0 Adventurer 5 Explorer 0 Win Type - Total 0 Types 0/0/0/0/0/0/0/0/0/0 Lore% 3 Gallery% 6 Achievement% 4 Wizard Run 0 Options --------- Layout 0 ASCII 0 Keyboard 0 Movement Arrows Keybinds 0 Fullscreen 2 Font 18/SmallcapsGlow Map View 76x50 Zoom Use 0% Tactical HUD 0 Map Filters NONE Filters NONE Steam 1 RUN: 764b2489-c123-4551-8e8e-d472710b0cca